[Event "Titled Tuesday Blitz December 14 2021"]
[White "Bacrot, Etienne"]
[Black "Alikhanov, Felix"]
[WhiteFideId "605506"]
[BlackFideId "4157427"]
[WhiteElo "2673"]
[BlackElo "2425"]
[Result "1-0"]
[Round "10"]
[TimeControl "180+1"]
[Date "2021.12.14"]
[WhiteClock "0:00:27"]
[BlackClock "0:00:03"]

1. d4 {[%clk 0:03:00]}  Nf6 {[%clk 0:02:59]} 2. Nf3 {[%clk 0:03:00]}  g6 {[%clk 0:02:59]} 3. Bf4 {[%clk 0:03:00]}  Bg7 {[%clk 0:02:59]} 4. Nc3 {[%clk 0:03:00]}  O-O {[%clk 0:03:00]} 5. e4 {[%clk 0:03:00]}  d6 {[%clk 0:03:00]} 6. h4 {[%clk 0:03:00]}  h5 {[%clk 0:02:56]} 7. Be2 {[%clk 0:02:56]}  c6 {[%clk 0:02:57]} 8. Qd2 {[%clk 0:02:56]}  b5 {[%clk 0:02:55]} 9. a3 {[%clk 0:02:56]}  a5 {[%clk 0:02:46]} 10. Bh6 {[%clk 0:02:37]}  Bb7 {[%clk 0:02:38]} 11. Bxg7 {[%clk 0:02:32]}  Kxg7 {[%clk 0:02:35]} 12. Ng5 {[%clk 0:02:18]}  b4 {[%clk 0:02:23]} 13. Nd1 {[%clk 0:02:18]}  c5 {[%clk 0:02:11]} 14. Bc4 {[%clk 0:02:03]}  d5 {[%clk 0:01:50]} 15. exd5 {[%clk 0:01:57]}  Bxd5 {[%clk 0:01:50]} 16. Bxd5 {[%clk 0:01:55]}  Qxd5 {[%clk 0:01:50]} 17. Nf3 {[%clk 0:01:40]}  Nc6 {[%clk 0:01:09]} 18. Ne3 {[%clk 0:01:38]}  Qe4 {[%clk 0:01:06]} 19. dxc5 {[%clk 0:01:37]}  Rad8 {[%clk 0:01:04]} 20. Qe2 {[%clk 0:01:36]}  Ng4 {[%clk 0:01:01]} 21. Ng5 {[%clk 0:01:12]}  Qe5 {[%clk 0:00:46]} 22. Nxg4 {[%clk 0:01:08]}  Qxe2+ {[%clk 0:00:43]} 23. Kxe2 {[%clk 0:01:08]}  Nd4+ {[%clk 0:00:42]} 24. Kd3 {[%clk 0:01:04]}  hxg4 {[%clk 0:00:36]} 25. axb4 {[%clk 0:01:02]}  axb4 {[%clk 0:00:33]} 26. Kc4 {[%clk 0:00:51]}  f6 {[%clk 0:00:25]} 27. Rhd1 {[%clk 0:00:42]}  e5 {[%clk 0:00:23]} 28. Ra7+ {[%clk 0:00:42]}  Kg8 {[%clk 0:00:21]} 29. Ne4 {[%clk 0:00:38]}  f5 {[%clk 0:00:15]} 30. Ng5 {[%clk 0:00:34]}  Nxc2 {[%clk 0:00:10]} 31. Rxd8 {[%clk 0:00:33]}  Rxd8 {[%clk 0:00:11]} 32. c6 {[%clk 0:00:33]}  Nd4 {[%clk 0:00:08]} 33. c7 {[%clk 0:00:33]}  Rc8 {[%clk 0:00:08]} 34. Kc5 {[%clk 0:00:32]}  Kf8 {[%clk 0:00:05]} 35. Kb6 {[%clk 0:00:32]}  Ke7 {[%clk 0:00:04]} 36. Ra5 {[%clk 0:00:30]}  Kd6 {[%clk 0:00:04]} 37. Nf7+ {[%clk 0:00:29]}  Kd7 {[%clk 0:00:03]} 38. Nxe5+ {[%clk 0:00:29]}  Kd6 {[%clk 0:00:04]} 39. Nc4+ {[%clk 0:00:29]}  Ke6 {[%clk 0:00:04]} 40. Re5+ {[%clk 0:00:28]}  Kf7 {[%clk 0:00:03]} 41. Kb7 {[%clk 0:00:28]}  Rg8 {[%clk 0:00:02]} 42. c8=Q {[%clk 0:00:26]}  Rxc8 {[%clk 0:00:03]} 43. Kxc8 {[%clk 0:00:27]} 1-0


[Site "https://www.chess.com"]

[Event "Titled Tuesday Blitz December 14 2021"]
[White "Belous, Vladimir"]
[Black "Paravyan, David"]
[WhiteFideId "4174003"]
[BlackFideId "4194985"]
[WhiteElo "2510"]
[BlackElo "2656"]
[Result "0-1"]
[Round "10"]
[TimeControl "180+1"]
[Date "2021.12.14"]
[WhiteClock "0:01:13"]
[BlackClock "0:02:05"]

1. c4 {[%clk 0:03:00]}  g6 {[%clk 0:02:56]} 2. Nc3 {[%clk 0:03:00]}  c5 {[%clk 0:02:56]} 3. Nf3 {[%clk 0:02:59]}  Bg7 {[%clk 0:02:56]} 4. g3 {[%clk 0:03:00]}  Nc6 {[%clk 0:02:54]} 5. Bg2 {[%clk 0:03:00]}  e6 {[%clk 0:02:55]} 6. O-O {[%clk 0:02:57]}  Nge7 {[%clk 0:02:54]} 7. d3 {[%clk 0:02:55]}  O-O {[%clk 0:02:55]} 8. Bg5 {[%clk 0:02:53]}  h6 {[%clk 0:02:54]} 9. Bf4 {[%clk 0:02:51]}  d5 {[%clk 0:02:52]} 10. cxd5 {[%clk 0:02:44]}  Nxd5 {[%clk 0:02:52]} 11. Nxd5 {[%clk 0:02:36]}  exd5 {[%clk 0:02:52]} 12. Qc1 {[%clk 0:02:36]}  g5 {[%clk 0:02:52]} 13. Bd2 {[%clk 0:02:36]}  Qe7 {[%clk 0:02:49]} 14. Re1 {[%clk 0:02:32]}  Be6 {[%clk 0:02:46]} 15. e3 {[%clk 0:02:19]}  Rac8 {[%clk 0:02:45]} 16. Bc3 {[%clk 0:02:09]}  d4 {[%clk 0:02:43]} 17. Bd2 {[%clk 0:02:10]}  dxe3 {[%clk 0:02:31]} 18. Bxe3 {[%clk 0:02:10]}  Nb4 {[%clk 0:02:28]} 19. Rd1 {[%clk 0:01:55]}  Rfd8 {[%clk 0:02:27]} 20. Ne1 {[%clk 0:01:53]}  Bf5 {[%clk 0:02:22]} 21. Qc4 {[%clk 0:01:16]}  Bxb2 {[%clk 0:02:13]} 22. Rab1 {[%clk 0:01:17]}  Bd4 {[%clk 0:02:12]} 23. Bxd4 {[%clk 0:01:13]}  Rxd4 {[%clk 0:02:10]} 24. Qb5 {[%clk 0:01:13]}  b6 {[%clk 0:02:05]} 25. a3 {[%clk 0:01:13]}  Bd7 {[%clk 0:02:05]} 0-1


[Site "https://www.chess.com"]

[Event "Titled Tuesday Blitz December 14 2021"]
[White "Cunha, Lucas Aguiar"]
[Black "Durarbayli, Vasif"]
[WhiteFideId "2125404"]
[BlackFideId "13402935"]
[WhiteElo "2361"]
[BlackElo "2599"]
[Result "0-1"]
[Round "10"]
[TimeControl "180+1"]
[Date "2021.12.14"]
[WhiteClock "0:00:07"]
[BlackClock "0:00:11"]

1. e4 {[%clk 0:03:00]}  c5 {[%clk 0:02:59]} 2. Nf3 {[%clk 0:03:01]}  d6 {[%clk 0:03:00]} 3. d4 {[%clk 0:03:01]}  cxd4 {[%clk 0:03:00]} 4. Qxd4 {[%clk 0:03:02]}  Nf6 {[%clk 0:02:56]} 5. Be2 {[%clk 0:03:02]}  g6 {[%clk 0:02:55]} 6. O-O {[%clk 0:03:01]}  Bg7 {[%clk 0:02:55]} 7. Nc3 {[%clk 0:02:57]}  O-O {[%clk 0:02:54]} 8. Rd1 {[%clk 0:02:53]}  Nc6 {[%clk 0:02:51]} 9. Qe3 {[%clk 0:02:53]}  Ng4 {[%clk 0:02:50]} 10. Qf4 {[%clk 0:02:50]}  Qb6 {[%clk 0:02:42]} 11. Qg3 {[%clk 0:02:46]}  Bxc3 {[%clk 0:02:37]} 12. bxc3 {[%clk 0:02:47]}  Qc5 {[%clk 0:02:22]} 13. h3 {[%clk 0:02:43]}  Nf6 {[%clk 0:02:21]} 14. Bd3 {[%clk 0:02:24]}  Be6 {[%clk 0:01:43]} 15. c4 {[%clk 0:02:17]}  Bxc4 {[%clk 0:01:26]} 16. Be3 {[%clk 0:02:16]}  Qb5 {[%clk 0:01:26]} 17. Rab1 {[%clk 0:02:17]}  Qa6 {[%clk 0:01:26]} 18. Bh6 {[%clk 0:02:02]}  Rfe8 {[%clk 0:01:16]} 19. Ng5 {[%clk 0:02:02]}  Rac8 {[%clk 0:01:03]} 20. Qh4 {[%clk 0:01:58]}  Ne5 {[%clk 0:01:01]} 21. f4 {[%clk 0:01:25]}  Nxd3 {[%clk 0:00:52]} 22. cxd3 {[%clk 0:01:24]}  Bxd3 {[%clk 0:00:53]} 23. e5 {[%clk 0:01:25]}  dxe5 {[%clk 0:00:51]} 24. fxe5 {[%clk 0:01:26]}  Bxb1 {[%clk 0:00:46]} 25. exf6 {[%clk 0:01:26]}  exf6 {[%clk 0:00:25]} 26. Rxb1 {[%clk 0:00:08]}  Qd3 {[%clk 0:00:12]} 27. Rf1 {[%clk 0:00:04]}  Rc4 {[%clk 0:00:09]} 28. Qf2 {[%clk 0:00:02]}  Qd4 {[%clk 0:00:05]} 29. Qxd4 {[%clk 0:00:02]}  Rxd4 {[%clk 0:00:05]} 30. Nf3 {[%clk 0:00:03]}  Rd7 {[%clk 0:00:06]} 31. Rf2 {[%clk 0:00:03]}  Re6 {[%clk 0:00:06]} 32. Bd2 {[%clk 0:00:03]}  Kg7 {[%clk 0:00:06]} 33. Bc3 {[%clk 0:00:03]}  Rc6 {[%clk 0:00:06]} 34. Bd4 {[%clk 0:00:03]}  b5 {[%clk 0:00:06]} 35. g4 {[%clk 0:00:03]}  h6 {[%clk 0:00:06]} 36. h4 {[%clk 0:00:04]}  Rc4 {[%clk 0:00:06]} 37. Rd2 {[%clk 0:00:03]}  Kg8 {[%clk 0:00:05]} 38. Kf2 {[%clk 0:00:04]}  a5 {[%clk 0:00:04]} 39. Ke3 {[%clk 0:00:04]}  Re7+ {[%clk 0:00:03]} 40. Kd3 {[%clk 0:00:04]}  Re6 {[%clk 0:00:04]} 41. Rg2 {[%clk 0:00:04]}  Rd6 {[%clk 0:00:04]} 42. Ke3 {[%clk 0:00:04]}  Ra4 {[%clk 0:00:04]} 43. g5 {[%clk 0:00:03]}  Ra3+ {[%clk 0:00:04]} 44. Ke4 {[%clk 0:00:03]}  Rxf3 {[%clk 0:00:05]} 45. Kxf3 {[%clk 0:00:03]}  Rxd4 {[%clk 0:00:05]} 46. gxf6 {[%clk 0:00:03]}  Rxh4 {[%clk 0:00:05]} 47. Rc2 {[%clk 0:00:03]}  g5 {[%clk 0:00:05]} 48. Rc8+ {[%clk 0:00:03]}  Kh7 {[%clk 0:00:05]} 49. Rc7 {[%clk 0:00:03]}  Kg6 {[%clk 0:00:05]} 50. Rb7 {[%clk 0:00:04]}  Rf4+ {[%clk 0:00:05]} 51. Ke3 {[%clk 0:00:04]}  b4 {[%clk 0:00:05]} 52. Rb5 {[%clk 0:00:05]}  Rf5 {[%clk 0:00:06]} 53. Rb6 {[%clk 0:00:05]}  Rxf6 {[%clk 0:00:06]} 54. Rb5 {[%clk 0:00:06]}  Rf5 {[%clk 0:00:07]} 55. Rb6+ {[%clk 0:00:06]}  f6 {[%clk 0:00:07]} 56. Rb7 {[%clk 0:00:05]}  Re5+ {[%clk 0:00:07]} 57. Kd4 {[%clk 0:00:05]}  h5 {[%clk 0:00:08]} 58. Rb8 {[%clk 0:00:06]}  Kf5 {[%clk 0:00:08]} 59. Rb7 {[%clk 0:00:06]}  h4 {[%clk 0:00:09]} 60. Rg7 {[%clk 0:00:06]}  Kg4 {[%clk 0:00:09]} 61. Rg6 {[%clk 0:00:06]}  Rf5 {[%clk 0:00:09]} 62. Ke4 {[%clk 0:00:06]}  Rf4+ {[%clk 0:00:09]} 63. Ke3 {[%clk 0:00:06]}  a4 {[%clk 0:00:10]} 64. Rh6 {[%clk 0:00:05]}  b3 {[%clk 0:00:10]} 65. axb3 {[%clk 0:00:06]}  axb3 {[%clk 0:00:11]} 66. Rh8 {[%clk 0:00:07]}  h3 {[%clk 0:00:11]} 67. Rb8 {[%clk 0:00:07]}  h2 {[%clk 0:00:11]} 0-1


[Site "https://www.chess.com"]

[Event "Titled Tuesday Blitz December 14 2021"]
[White "Dobrov, Vladimir"]
[Black "Tsydypov, Zhamsaran"]
[WhiteFideId "4136594"]
[BlackFideId "4108566"]
[WhiteElo "2614"]
[BlackElo "2614"]
[Result "0-1"]
[Round "10"]
[TimeControl "180+1"]
[Date "2021.12.14"]
[WhiteClock "0:00:05"]
[BlackClock "0:01:12"]

1. d4 {[%clk 0:03:00]}  Nf6 {[%clk 0:02:59]} 2. c4 {[%clk 0:03:00]}  g6 {[%clk 0:02:59]} 3. Nc3 {[%clk 0:03:00]}  Bg7 {[%clk 0:03:00]} 4. e4 {[%clk 0:03:00]}  O-O {[%clk 0:02:59]} 5. Be2 {[%clk 0:03:01]}  d6 {[%clk 0:02:59]} 6. Nf3 {[%clk 0:03:01]}  Bg4 {[%clk 0:02:56]} 7. Be3 {[%clk 0:03:00]}  Nfd7 {[%clk 0:02:56]} 8. Ng1 {[%clk 0:03:00]}  Bxe2 {[%clk 0:02:55]} 9. Ngxe2 {[%clk 0:03:01]}  c5 {[%clk 0:02:56]} 10. d5 {[%clk 0:02:51]}  Ne5 {[%clk 0:02:55]} 11. b3 {[%clk 0:02:51]}  Ng4 {[%clk 0:02:54]} 12. Bd2 {[%clk 0:02:51]}  a6 {[%clk 0:02:52]} 13. h3 {[%clk 0:02:51]}  Nf6 {[%clk 0:02:52]} 14. a4 {[%clk 0:02:49]}  Re8 {[%clk 0:02:50]} 15. O-O {[%clk 0:02:48]}  e6 {[%clk 0:02:50]} 16. Ng3 {[%clk 0:02:45]}  Nbd7 {[%clk 0:02:50]} 17. dxe6 {[%clk 0:02:20]}  Rxe6 {[%clk 0:02:49]} 18. f4 {[%clk 0:02:21]}  Qb6 {[%clk 0:02:45]} 19. a5 {[%clk 0:02:19]}  Qc7 {[%clk 0:02:45]} 20. Qf3 {[%clk 0:02:19]}  h5 {[%clk 0:02:43]} 21. f5 {[%clk 0:02:18]}  Ne5 {[%clk 0:02:43]} 22. Qe2 {[%clk 0:02:14]}  Ree8 {[%clk 0:02:42]} 23. fxg6 {[%clk 0:02:11]}  fxg6 {[%clk 0:02:41]} 24. Bg5 {[%clk 0:02:11]}  Nh7 {[%clk 0:02:41]} 25. Nd5 {[%clk 0:02:11]}  Qd7 {[%clk 0:02:39]} 26. Bf4 {[%clk 0:01:04]}  Rad8 {[%clk 0:02:36]} 27. Rad1 {[%clk 0:01:02]}  Nc6 {[%clk 0:02:36]} 28. Qe1 {[%clk 0:00:29]}  Nd4 {[%clk 0:02:31]} 29. b4 {[%clk 0:00:25]}  Qa4 {[%clk 0:02:20]} 30. bxc5 {[%clk 0:00:25]}  dxc5 {[%clk 0:02:20]} 31. e5 {[%clk 0:00:25]}  Qxc4 {[%clk 0:02:19]} 32. Nb6 {[%clk 0:00:25]}  Qe6 {[%clk 0:02:18]} 33. Ne4 {[%clk 0:00:25]}  Qc6 {[%clk 0:02:14]} 34. Nc4 {[%clk 0:00:19]}  Qd5 {[%clk 0:02:04]} 35. Ned6 {[%clk 0:00:19]}  Re6 {[%clk 0:02:03]} 36. Kh1 {[%clk 0:00:08]}  g5 {[%clk 0:01:59]} 37. Bh2 {[%clk 0:00:08]}  g4 {[%clk 0:01:59]} 38. hxg4 {[%clk 0:00:07]}  hxg4 {[%clk 0:01:59]} 39. Qh4 {[%clk 0:00:08]}  Rd7 {[%clk 0:01:47]} 40. Qxg4 {[%clk 0:00:08]}  Nf8 {[%clk 0:01:47]} 41. Ne3 {[%clk 0:00:08]}  Qb3 {[%clk 0:01:42]} 42. Rxd4 {[%clk 0:00:07]}  cxd4 {[%clk 0:01:41]} 43. Nef5 {[%clk 0:00:08]}  Rg6 {[%clk 0:01:39]} 44. Qe4 {[%clk 0:00:06]}  Qe6 {[%clk 0:01:13]} 45. Nxd4 {[%clk 0:00:05]}  Qg4 {[%clk 0:01:13]} 46. Qd5+ {[%clk 0:00:05]}  Kh7 {[%clk 0:01:12]} 47. Rf4 {[%clk 0:00:05]}  Qd1+ {[%clk 0:01:12]} 0-1


[Site "https://www.chess.com"]

[Event "Titled Tuesday Blitz December 14 2021"]
[White "Gabrielian, Artur"]
[Black "Vovk, Orest"]
[WhiteFideId "4131002"]
[BlackFideId "14113490"]
[WhiteElo "2440"]
[BlackElo "2203"]
[Result "0-1"]
[Round "10"]
[TimeControl "180+1"]
[Date "2021.12.14"]
[WhiteClock "0:00:51"]
[BlackClock "0:00:28"]

1. e4 {[%clk 0:03:00]}  g5 {[%clk 0:02:57]} 2. d4 {[%clk 0:03:00]}  h6 {[%clk 0:02:57]} 3. Nc3 {[%clk 0:02:58]}  Bg7 {[%clk 0:02:57]} 4. h4 {[%clk 0:02:56]}  c5 {[%clk 0:02:53]} 5. dxc5 {[%clk 0:02:56]}  Bxc3+ {[%clk 0:02:52]} 6. bxc3 {[%clk 0:02:56]}  Qa5 {[%clk 0:02:49]} 7. hxg5 {[%clk 0:02:55]}  hxg5 {[%clk 0:02:47]} 8. Rxh8 {[%clk 0:02:52]}  Qxc3+ {[%clk 0:02:47]} 9. Bd2 {[%clk 0:02:52]}  Qxh8 {[%clk 0:02:48]} 10. Bxg5 {[%clk 0:02:47]}  Qe5 {[%clk 0:02:47]} 11. Be3 {[%clk 0:02:45]}  Qc3+ {[%clk 0:02:41]} 12. Bd2 {[%clk 0:02:42]}  Qxc5 {[%clk 0:02:39]} 13. Qg4 {[%clk 0:02:39]}  Nf6 {[%clk 0:02:32]} 14. Qh4 {[%clk 0:02:39]}  d6 {[%clk 0:02:24]} 15. Rb1 {[%clk 0:02:37]}  Nc6 {[%clk 0:02:16]} 16. Nf3 {[%clk 0:02:31]}  Qxc2 {[%clk 0:02:11]} 17. Rc1 {[%clk 0:02:20]}  Qxe4+ {[%clk 0:02:10]} 18. Qxe4 {[%clk 0:02:18]}  Nxe4 {[%clk 0:02:11]} 19. Be3 {[%clk 0:02:19]}  Be6 {[%clk 0:01:56]} 20. a3 {[%clk 0:02:18]}  Rc8 {[%clk 0:01:50]} 21. Bd3 {[%clk 0:02:18]}  Nf6 {[%clk 0:01:45]} 22. Ng5 {[%clk 0:02:16]}  Bd5 {[%clk 0:01:37]} 23. Kd2 {[%clk 0:02:11]}  Kd7 {[%clk 0:01:27]} 24. f3 {[%clk 0:02:04]}  a6 {[%clk 0:01:17]} 25. Rb1 {[%clk 0:02:01]}  b5 {[%clk 0:01:13]} 26. a4 {[%clk 0:02:01]}  Ne5 {[%clk 0:01:06]} 27. axb5 {[%clk 0:01:42]}  Nxd3 {[%clk 0:01:05]} 28. Kxd3 {[%clk 0:01:42]}  axb5 {[%clk 0:01:03]} 29. Bd4 {[%clk 0:01:40]}  e5 {[%clk 0:00:57]} 30. Bc3 {[%clk 0:01:40]}  Bc4+ {[%clk 0:00:57]} 31. Kd2 {[%clk 0:01:41]}  Nd5 {[%clk 0:00:54]} 32. Bb2 {[%clk 0:01:23]}  Rg8 {[%clk 0:00:50]} 33. g4 {[%clk 0:01:04]}  Rxg5 {[%clk 0:00:49]} 34. Ra1 {[%clk 0:01:05]}  f5 {[%clk 0:00:46]} 35. Ra7+ {[%clk 0:01:04]}  Ke6 {[%clk 0:00:46]} 36. gxf5+ {[%clk 0:01:02]}  Kxf5 {[%clk 0:00:46]} 37. Ke1 {[%clk 0:01:01]}  Rg2 {[%clk 0:00:44]} 38. Bc1 {[%clk 0:01:01]}  Re2+ {[%clk 0:00:41]} 39. Kf1 {[%clk 0:01:01]}  Rc2+ {[%clk 0:00:40]} 40. Ke1 {[%clk 0:01:01]}  Rxc1+ {[%clk 0:00:41]} 41. Kf2 {[%clk 0:01:02]}  Rc2+ {[%clk 0:00:40]} 42. Kg3 {[%clk 0:01:02]}  e4 {[%clk 0:00:35]} 43. Ra8 {[%clk 0:01:00]}  Rc3 {[%clk 0:00:31]} 44. Rf8+ {[%clk 0:00:56]}  Kg6 {[%clk 0:00:32]} 45. Kh4 {[%clk 0:00:52]}  Rxf3 {[%clk 0:00:30]} 46. Rd8 {[%clk 0:00:52]}  Rf6 {[%clk 0:00:28]} 47. Re8 {[%clk 0:00:51]}  e3 {[%clk 0:00:28]} 0-1


[Site "https://www.chess.com"]

[Event "Titled Tuesday Blitz December 14 2021"]
[White "Horvath, Dominik"]
[Black "Nikologorskiy, Konstantin"]
[WhiteFideId "1642561"]
[BlackFideId "24111708"]
[WhiteElo "2336"]
[BlackElo "2346"]
[Result "0-1"]
[Round "10"]
[TimeControl "180+1"]
[Date "2021.12.14"]
[WhiteClock "0:00:02"]
[BlackClock "0:00:15"]

1. e4 {[%clk 0:03:00]}  c5 {[%clk 0:02:59]} 2. c3 {[%clk 0:02:58]}  d5 {[%clk 0:02:58]} 3. exd5 {[%clk 0:02:58]}  Qxd5 {[%clk 0:02:59]} 4. d4 {[%clk 0:02:59]}  Nc6 {[%clk 0:02:54]} 5. Nf3 {[%clk 0:02:58]}  Bg4 {[%clk 0:02:52]} 6. Be2 {[%clk 0:02:49]}  e6 {[%clk 0:02:47]} 7. O-O {[%clk 0:02:48]}  Nf6 {[%clk 0:02:45]} 8. h3 {[%clk 0:02:44]}  Bf5 {[%clk 0:02:39]} 9. Na3 {[%clk 0:02:44]}  cxd4 {[%clk 0:02:38]} 10. Nb5 {[%clk 0:02:44]}  Rc8 {[%clk 0:02:23]} 11. Nfxd4 {[%clk 0:02:42]}  Nxd4 {[%clk 0:02:15]} 12. Nxd4 {[%clk 0:02:32]}  Bc5 {[%clk 0:01:58]} 13. Qa4+ {[%clk 0:02:24]}  Ke7 {[%clk 0:01:32]} 14. Nxf5+ {[%clk 0:02:24]}  Qxf5 {[%clk 0:01:32]} 15. Bf3 {[%clk 0:02:24]}  b5 {[%clk 0:01:26]} 16. Qa6 {[%clk 0:02:21]}  Rhd8 {[%clk 0:01:21]} 17. a4 {[%clk 0:02:13]}  Rb8 {[%clk 0:01:05]} 18. axb5 {[%clk 0:02:12]}  Rxb5 {[%clk 0:01:03]} 19. Bc6 {[%clk 0:01:31]}  Rbb8 {[%clk 0:00:49]} 20. Qe2 {[%clk 0:01:15]}  Kf8 {[%clk 0:00:38]} 21. b4 {[%clk 0:01:13]}  Bb6 {[%clk 0:00:38]} 22. Be3 {[%clk 0:00:59]}  Qd3 {[%clk 0:00:37]} 23. Qxd3 {[%clk 0:00:51]}  Rxd3 {[%clk 0:00:38]} 24. Bxb6 {[%clk 0:00:51]}  axb6 {[%clk 0:00:39]} 25. c4 {[%clk 0:00:48]}  Rc3 {[%clk 0:00:36]} 26. Rfc1 {[%clk 0:00:47]}  Rxc1+ {[%clk 0:00:35]} 27. Rxc1 {[%clk 0:00:48]}  Ke7 {[%clk 0:00:35]} 28. Bf3 {[%clk 0:00:42]}  Nd7 {[%clk 0:00:32]} 29. c5 {[%clk 0:00:41]}  bxc5 {[%clk 0:00:32]} 30. bxc5 {[%clk 0:00:42]}  Rc8 {[%clk 0:00:32]} 31. c6 {[%clk 0:00:36]}  Ne5 {[%clk 0:00:32]} 32. Be4 {[%clk 0:00:37]}  f5 {[%clk 0:00:32]} 33. f4 {[%clk 0:00:37]}  Ng6 {[%clk 0:00:27]} 34. Bf3 {[%clk 0:00:36]}  Nxf4 {[%clk 0:00:27]} 35. Rb1 {[%clk 0:00:35]}  Nd5 {[%clk 0:00:22]} 36. Rb7+ {[%clk 0:00:27]}  Kf6 {[%clk 0:00:21]} 37. Bxd5 {[%clk 0:00:23]}  exd5 {[%clk 0:00:21]} 38. c7 {[%clk 0:00:21]}  Ke5 {[%clk 0:00:20]} 39. Kf2 {[%clk 0:00:21]}  Kd6 {[%clk 0:00:20]} 40. Kf3 {[%clk 0:00:11]}  Rxc7 {[%clk 0:00:20]} 41. Rb6+ {[%clk 0:00:12]}  Ke5 {[%clk 0:00:20]} 42. Rb8 {[%clk 0:00:12]}  Rc3+ {[%clk 0:00:20]} 43. Kf2 {[%clk 0:00:13]}  d4 {[%clk 0:00:19]} 44. Re8+ {[%clk 0:00:11]}  Kf4 {[%clk 0:00:19]} 45. Re7 {[%clk 0:00:12]}  Rc2+ {[%clk 0:00:19]} 46. Kg1 {[%clk 0:00:11]}  d3 {[%clk 0:00:19]} 47. Kh2 {[%clk 0:00:09]}  d2 {[%clk 0:00:17]} 48. Rd7 {[%clk 0:00:09]}  g5 {[%clk 0:00:17]} 49. Rd3 {[%clk 0:00:08]}  Ke4 {[%clk 0:00:17]} 50. Rd7 {[%clk 0:00:08]}  h5 {[%clk 0:00:17]} 51. h4 {[%clk 0:00:08]}  g4 {[%clk 0:00:16]} 52. Rd8 {[%clk 0:00:05]}  f4 {[%clk 0:00:14]} 53. Re8+ {[%clk 0:00:05]}  Kd3 {[%clk 0:00:14]} 54. Rd8+ {[%clk 0:00:05]}  Ke2 {[%clk 0:00:15]} 55. g3 {[%clk 0:00:05]}  d1=Q {[%clk 0:00:14]} 56. Re8+ {[%clk 0:00:05]}  Kf3+ {[%clk 0:00:14]} 57. Re2 {[%clk 0:00:02]}  Rxe2# {[%clk 0:00:15]} 0-1


[Site "https://www.chess.com"]

[Event "Titled Tuesday Blitz December 14 2021"]
[White "Ibarra Jerez, Jose Carlos"]
[Black "Leitao, Rafael"]
[WhiteFideId "2226332"]
[BlackFideId "2101246"]
[WhiteElo "2626"]
[BlackElo "2609"]
[Result "1/2-1/2"]
[Round "10"]
[TimeControl "180+1"]
[Date "2021.12.14"]
[WhiteClock "0:00:06"]
[BlackClock "0:00:04"]

1. Nf3 {[%clk 0:03:00]}  Nf6 {[%clk 0:02:59]} 2. g3 {[%clk 0:03:00]}  d5 {[%clk 0:02:59]} 3. Bg2 {[%clk 0:03:00]}  e6 {[%clk 0:02:58]} 4. O-O {[%clk 0:03:00]}  Be7 {[%clk 0:02:59]} 5. c4 {[%clk 0:03:01]}  O-O {[%clk 0:02:58]} 6. b3 {[%clk 0:03:01]}  d4 {[%clk 0:02:58]} 7. e3 {[%clk 0:02:53]}  c5 {[%clk 0:02:56]} 8. Ne5 {[%clk 0:02:53]}  Nfd7 {[%clk 0:02:48]} 9. exd4 {[%clk 0:02:51]}  cxd4 {[%clk 0:02:48]} 10. Nxd7 {[%clk 0:02:45]}  Nxd7 {[%clk 0:02:46]} 11. d3 {[%clk 0:02:45]}  a5 {[%clk 0:02:36]} 12. Na3 {[%clk 0:02:41]}  Nc5 {[%clk 0:02:36]} 13. Re1 {[%clk 0:02:36]}  Bd7 {[%clk 0:02:31]} 14. Nc2 {[%clk 0:02:29]}  Bc6 {[%clk 0:02:22]} 15. Bxc6 {[%clk 0:02:23]}  bxc6 {[%clk 0:02:22]} 16. Qf3 {[%clk 0:02:23]}  Qd7 {[%clk 0:02:16]} 17. Bb2 {[%clk 0:02:23]}  Bf6 {[%clk 0:02:15]} 18. Ba3 {[%clk 0:02:23]}  Be7 {[%clk 0:02:03]} 19. Re5 {[%clk 0:02:07]}  Qa7 {[%clk 0:01:29]} 20. Rae1 {[%clk 0:01:23]}  Rfc8 {[%clk 0:00:58]} 21. Kg2 {[%clk 0:00:45]}  Nd7 {[%clk 0:00:49]} 22. R5e4 {[%clk 0:00:44]}  Bxa3 {[%clk 0:00:48]} 23. Nxa3 {[%clk 0:00:45]}  e5 {[%clk 0:00:38]} 24. Nc2 {[%clk 0:00:40]}  a4 {[%clk 0:00:31]} 25. Nxd4 {[%clk 0:00:39]}  Nf6 {[%clk 0:00:30]} 26. Nf5 {[%clk 0:00:31]}  Nxe4 {[%clk 0:00:29]} 27. Rxe4 {[%clk 0:00:31]}  f6 {[%clk 0:00:22]} 28. d4 {[%clk 0:00:28]}  Rc7 {[%clk 0:00:19]} 29. dxe5 {[%clk 0:00:28]}  fxe5 {[%clk 0:00:19]} 30. Rxe5 {[%clk 0:00:28]}  Rf8 {[%clk 0:00:19]} 31. Qe2 {[%clk 0:00:16]}  Rcf7 {[%clk 0:00:18]} 32. g4 {[%clk 0:00:14]}  Kh8 {[%clk 0:00:16]} 33. Re6 {[%clk 0:00:11]}  Qd7 {[%clk 0:00:15]} 34. Qe4 {[%clk 0:00:08]}  c5 {[%clk 0:00:14]} 35. h4 {[%clk 0:00:08]}  axb3 {[%clk 0:00:12]} 36. axb3 {[%clk 0:00:08]}  Qb7 {[%clk 0:00:13]} 37. f3 {[%clk 0:00:04]}  Qxe4 {[%clk 0:00:12]} 38. Rxe4 {[%clk 0:00:04]}  Rb7 {[%clk 0:00:11]} 39. Re3 {[%clk 0:00:04]}  Rfb8 {[%clk 0:00:11]} 40. Nd6 {[%clk 0:00:04]}  Rxb3 {[%clk 0:00:10]} 41. Re5 {[%clk 0:00:04]}  Rf8 {[%clk 0:00:10]} 42. Nf5 {[%clk 0:00:03]}  g6 {[%clk 0:00:10]} 43. Nh6 {[%clk 0:00:03]}  Rbxf3 {[%clk 0:00:10]} 44. g5 {[%clk 0:00:03]}  Rf2+ {[%clk 0:00:10]} 45. Kg3 {[%clk 0:00:03]}  R8f3+ {[%clk 0:00:09]} 46. Kg4 {[%clk 0:00:04]}  Rf4+ {[%clk 0:00:10]} 47. Kg3 {[%clk 0:00:04]}  R2f3+ {[%clk 0:00:10]} 48. Kg2 {[%clk 0:00:05]}  Rf2+ {[%clk 0:00:07]} 49. Kg3 {[%clk 0:00:06]}  R4f3+ {[%clk 0:00:07]} 50. Kg4 {[%clk 0:00:06]}  Rf4+ {[%clk 0:00:04]} 51. Kg3 {[%clk 0:00:06]} 1/2-1/2


[Site "https://www.chess.com"]